bitfinex/quotes_BTCUSD_20250224
["timestamp","ask_amount","ask_price","bid_price","bid_amount"]
[1740439760156,0.01424,92411.0,92408.0,0.08654871]
[1740439760359,0.032,92419.0,92408.0,0.08454871]
[1740439760571,0.01424,92418.0,92408.0,0.08454871]
[1740439760718,0.00299961,92418.0,92408.0,0.08054871]
[1740439760916,0.00299961,92418.0,92408.0,0.07854871]
[1740439761117,0.00124,92418.0,92408.0,0.07854871]
[1740439761326,0.00124,92418.0,92408.0,0.08640358]
[1740439761532,0.01424,92427.0,92408.0,0.07854871]
[1740439761743,0.01424,92427.0,92426.0,0.08654871]
[1740439762285,0.01424,92427.0,92426.0,0.08354871]
[1740439762419,4.327e-05,92428.0,92426.0,0.08254871]
[1740439762620,4.327e-05,92428.0,92427.0,0.0141]
[1740439763051,4.327e-05,92428.0,92427.0,0.0101]
[1740439763257,0.03223234,92432.0,92427.0,0.0101]
[1740439763258,0.02207561,92432.0,92427.0,0.0101]
[1740439763464,0.001,92428.0,92426.0,0.08254871]
[1740439763847,0.003,92428.0,92427.0,0.0015144]
[1740439764056,0.004,92428.0,92426.0,0.09080358]
[1740439764448,0.004,92428.0,92426.0,0.08254871]
[1740439766735,0.0017006,92458.0,92457.0,0.34521731]
[1740439767891,0.01644823,92458.0,92457.0,0.34521731]
[1740439768103,0.0017006,92458.0,92457.0,0.34521731]
[1740439768290,0.00328607,92458.0,92457.0,0.34521731]
[1740439768487,0.01732285,92458.0,92457.0,0.34521731]
[1740439768697,0.01932285,92458.0,92457.0,0.34521731]
[1740439768890,0.0179406,92458.0,92457.0,0.34521731]
[1740439769115,0.12840523,92458.0,92457.0,0.34521731]
[1740439769325,0.25451148,92458.0,92457.0,0.34521731]
[1740439769520,0.25451148,92458.0,92440.0,0.34621731]
[1740439769521,0.01474763,92441.0,92440.0,0.34621731]
[1740439769740,0.33383624,92441.0,92440.0,0.34621731]
[1740439769985,0.52381959,92441.0,92440.0,0.34621731]
[1740439770159,0.63638158,92441.0,92440.0,0.34621731]
[1740439770365,0.6603397,92441.0,92440.0,0.34621731]
[1740439770617,0.6477537,92441.0,92440.0,0.34621731]
[1740439770837,0.6487537,92441.0,92440.0,0.34621731]
[1740439771289,0.6487537,92441.0,92392.0,0.33412]
[1740439771516,0.01474763,92428.0,92392.0,0.33412]
[1740439771717,0.70803308,92427.0,92392.0,0.33412]
[1740439772019,1.03453308,92427.0,92392.0,0.0904]
[1740439772216,0.01474763,92414.0,92408.0,0.07867756]
[1740439772407,0.50052661,92413.0,92408.0,0.07867756]
[1740439772599,0.354469,92412.0,92408.0,0.07867756]
[1740439772751,0.35631346,92412.0,92408.0,0.07867756]
[1740439772954,0.351348,92411.0,92408.0,0.07867756]
[1740439773377,0.01474763,92410.0,92408.0,0.07867756]
[1740439773581,0.384778,92409.0,92408.0,0.07867756]
[1740439774019,0.40136305,92409.0,92408.0,0.07867756]
[1740439774381,0.36799005,92409.0,92408.0,0.07867756]
[1740439774734,0.35642665,92409.0,92408.0,0.07867756]
[1740439774944,0.35818751,92409.0,92408.0,0.07867756]
[1740439775137,0.68768751,92409.0,92408.0,0.07867756]
[1740439775338,0.68768751,92409.0,92408.0,0.00012885]
[1740439776222,0.68868751,92409.0,92408.0,0.00012885]
[1740439777638,0.33728251,92409.0,92408.0,0.00012885]
[1740439777980,3.53012151,92409.0,92408.0,0.00012885]
[1740439778194,1.30067051,92409.0,92408.0,0.00012885]
[1740439778566,1.29967051,92409.0,92408.0,0.00012885]
[1740439778984,1.30167051,92409.0,92408.0,0.00012885]
[1740439779449,1.30328766,92409.0,92408.0,0.00012885]
[1740439779640,1.32819013,92409.0,92408.0,0.00012885]
[1740439779821,1.34619013,92409.0,92408.0,0.00012885]
[1740439780121,1.43091158,92409.0,92408.0,0.00012885]
[1740439780379,1.43091158,92409.0,92408.0,0.00097735]
[1740439780600,0.61072165,92401.0,92391.0,0.025]
[1740439780849,3.31283365,92401.0,92400.0,8.95556331]
[1740439781114,4.49532372,92401.0,92400.0,8.95556331]
[1740439781388,2.89600598,92401.0,92400.0,8.64936331]
[1740439781663,2.84819533,92401.0,92400.0,8.34336331]
[1740439781910,2.81003533,92401.0,92400.0,8.18716331]
[1740439782150,2.81003533,92401.0,92400.0,8.15686331]
[1740439782151,2.77973533,92401.0,92400.0,8.15686331]
[1740439782377,2.52186588,92401.0,92400.0,8.13376671]
[1740439782630,2.52186588,92401.0,92400.0,8.01693553]
[1740439782876,2.52186588,92401.0,92400.0,7.58856182]
[1740439783105,2.52114307,92401.0,92400.0,7.47066582]
[1740439783346,3.05593613,92401.0,92400.0,7.36579473]
[1740439783546,3.05659815,92401.0,92400.0,7.15605254]
[1740439783806,3.05659815,92401.0,92400.0,7.05118144]
[1740439784045,3.05659815,92401.0,92400.0,6.88621439]
[1740439784279,3.05493613,92401.0,92400.0,6.60091107]
[1740439784563,3.06243613,92401.0,92400.0,6.03586755]
[1740439784802,3.54985503,92401.0,92400.0,5.26924397]
[1740439785010,3.51059503,92401.0,92400.0,2.71779134]
[1740439785118,4.32845568,92401.0,92400.0,2.37941883]
[1740439785318,4.32745568,92401.0,92400.0,2.10120973]
[1740439785533,4.32745568,92401.0,92400.0,1.70714983]
[1740439785902,4.24030568,92401.0,92400.0,0.7323489]
[1740439786217,6.02158659,92401.0,92400.0,0.58995211]
[1740439786410,4.71550239,92401.0,92400.0,0.46905057]
[1740439786593,3.15773939,92401.0,92400.0,0.35101138]
[1740439786748,3.15773939,92401.0,92393.0,5.163e-05]
[1740439786749,0.04802165,92394.0,92393.0,5.163e-05]
[1740439786953,0.04802165,92392.0,92391.0,0.023796]
[1740439787182,0.52502165,92389.0,92388.0,0.018435]
[1740439787342,2.28832165,92389.0,92388.0,0.018435]
[1740439787551,2.28997823,92389.0,92388.0,0.018435]
[1740439787753,2.26697823,92389.0,92388.0,0.01393153]
[1740439787954,2.26889414,92389.0,92388.0,0.01393153]
[1740439788157,5.18893714,92389.0,92388.0,0.01282574]
[1740439788368,3.49565814,92389.0,92388.0,0.01282574]
[1740439788579,3.60228223,92389.0,92388.0,0.01282574]
[1740439788778,3.60228223,92389.0,92388.0,0.01161729]
[1740439788779,3.60028223,92389.0,92388.0,0.01161729]
[1740439789086,3.60519814,92389.0,92388.0,0.01161729]
[1740439789286,3.60119814,92389.0,92388.0,0.01048056]
[1740439789686,3.58795814,92389.0,92388.0,0.01048056]
[1740439789871,3.60519814,92389.0,92388.0,0.00918232]
[1740439790079,2.40143414,92389.0,92388.0,0.00918232]
[1740439790320,4.12356114,92389.0,92388.0,0.00918232]
[1740439790626,4.12056114,92389.0,92388.0,0.00803916]
[1740439790993,4.12256114,92389.0,92388.0,0.00699524]
[1740439791189,4.12256114,92389.0,92388.0,0.00690362]
[1740439791401,4.12164523,92389.0,92388.0,0.00557984]
[1740439791614,4.08960523,92389.0,92388.0,0.00557984]
[1740439791791,4.00599223,92389.0,92388.0,0.00557984]
[1740439792014,3.89169223,92389.0,92388.0,0.00519558]
[1740439792404,3.89069223,92389.0,92388.0,0.00383434]
[1740439792652,3.89362375,92389.0,92388.0,0.00383434]
[1740439793055,4.14042375,92389.0,92388.0,0.00261971]
[1740439793276,4.16042375,92389.0,92388.0,0.00261971]
[1740439793452,4.16042375,92389.0,92388.0,0.00154118]
[1740439793453,2.55394975,92389.0,92388.0,0.00154118]
[1740439793792,3.05394975,92389.0,92388.0,0.00154118]
[1740439793992,3.05394975,92389.0,92388.0,0.00038075]
[1740439794288,3.05294975,92389.0,92388.0,0.00038075]
[1740439794488,0.04802165,92381.0,92380.0,0.10009737]
[1740439794689,0.64481471,92381.0,92380.0,0.10009737]
[1740439794913,0.64646843,92381.0,92380.0,0.10009737]
[1740439795192,4.21868395,92381.0,92380.0,0.09879911]
[1740439795659,4.33298395,92381.0,92380.0,0.09775425]
[1740439795880,1.26269995,92381.0,92380.0,0.09775425]
[1740439796063,1.26269995,92381.0,92380.0,0.09658356]
[1740439796567,1.47381017,92381.0,92380.0,0.09542911]
[1740439796729,3.21411017,92381.0,92380.0,0.09542911]
[1740439796935,6.67009417,92381.0,92380.0,0.09542911]
[1740439797149,6.67009417,92381.0,92380.0,0.09432964]
[1740439797150,6.61812384,92381.0,92380.0,0.09432964]
[1740439797352,5.00263484,92381.0,92380.0,0.09432964]
[1740439797549,5.04017365,92381.0,92380.0,0.09432964]
[1740439797752,4.53917365,92381.0,92380.0,0.09432964]
[1740439798150,4.54317365,92381.0,92380.0,0.09432964]
[1740439798753,4.52897365,92381.0,92380.0,0.09432964]
[1740439798960,4.53278265,92381.0,92380.0,0.09432964]
[1740439799175,4.35131465,92381.0,92380.0,0.09432964]
[1740439799594,4.35325359,92381.0,92380.0,0.09432964]
[1740439800119,4.35333659,92381.0,92380.0,0.09432964]
[1740439800327,4.33613659,92381.0,92380.0,0.09432964]
[1740439800542,4.34939765,92381.0,92380.0,0.09432964]
[1740439801341,2.72942989,92381.0,92380.0,0.09432964]
[1740439801718,2.94054011,92381.0,92380.0,0.09432964]
[1740439802816,2.92634011,92381.0,92380.0,0.09432964]
[1740439802996,2.93859765,92381.0,92380.0,0.09432964]
[1740439803495,2.91559765,92381.0,92380.0,0.09432964]
[1740439803624,2.93731765,92381.0,92380.0,0.09432964]
[1740439804239,2.91559765,92381.0,92380.0,0.17322964]
[1740439804676,2.70448743,92381.0,92380.0,0.17407854]
[1740439805369,2.70348743,92381.0,92380.0,0.17407854]
[1740439805572,2.18928743,92381.0,92380.0,0.17407854]
[1740439805776,0.64289155,92381.0,92380.0,0.17407854]
[1740439806093,0.3754612,92381.0,92380.0,0.17407854]
[1740439806250,0.3754612,92381.0,92380.0,0.22297854]
[1740439806251,0.02042933,92381.0,92380.0,0.22297854]
[1740439806457,0.0142,92384.0,92380.0,0.22297854]
[1740439806660,0.00012262,92394.0,92381.0,0.00151526]
[1740439806856,0.5142,92396.0,92393.0,0.08655199]
[1740439807083,0.5,92396.0,92393.0,0.08655199]
[1740439807490,0.00502165,92394.0,92393.0,0.08655199]
[1740439807844,0.00514427,92394.0,92393.0,0.08655199]
[1740439808064,0.44566227,92394.0,92393.0,0.08555199]
[1740439808376,0.44566227,92394.0,92380.0,0.02712529]
[1740439808377,0.003,92381.0,92380.0,0.02712529]
[1740439808581,0.41113187,92381.0,92380.0,0.02712529]
[1740439808983,0.54897187,92381.0,92380.0,0.02712529]
[1740439809182,0.54597187,92381.0,92380.0,0.02712529]
[1740439809550,0.56017187,92381.0,92380.0,0.02712529]
[1740439809760,0.56317187,92381.0,92380.0,0.02712529]
[1740439809959,0.56332001,92381.0,92380.0,0.02712529]
[1740439810167,0.54612001,92381.0,92380.0,0.02712529]
[1740439810502,0.56332001,92381.0,92380.0,0.02712529]
[1740439810861,0.56626414,92381.0,92380.0,0.02712529]
[1740439811417,0.56526414,92381.0,92380.0,0.02712529]
[1740439811634,0.56626414,92381.0,92380.0,0.02712529]
[1740439812935,0.56526414,92381.0,92380.0,0.02712529]
[1740439813698,0.56626414,92381.0,92380.0,0.02712529]
[1740439814111,0.54966901,92381.0,92380.0,0.02712529]
[1740439814313,0.63103087,92381.0,92380.0,0.02712529]
[1740439814534,0.61783087,92381.0,92380.0,0.02712529]
[1740439814742,0.42333187,92381.0,92380.0,0.02712529]
[1740439815204,0.42350164,92381.0,92380.0,0.02712529]
[1740439815512,0.41997935,92381.0,92380.0,0.02712529]
[1740439815723,0.41897935,92381.0,92380.0,0.02712529]
[1740439816059,0.01686913,92381.0,92380.0,0.02712529]
[1740439816242,0.01669936,92381.0,92380.0,0.02712529]
[1740439816444,0.001,92381.0,92380.0,0.02712529]
[1740439816645,0.0142,92389.0,92380.0,0.02712529]
[1740439816943,0.0142,92389.0,92388.0,0.08555199]
[1740439817598,0.0142,92389.0,92388.0,0.08455199]
[1740439817736,0.0545,92394.0,92389.0,0.0795]
[1740439818395,0.00502165,92390.0,92389.0,0.0795]
[1740439818691,0.00502165,92390.0,92388.0,0.08455199]
[1740439818692,0.00802165,92389.0,92388.0,0.08455199]
[1740439818849,0.29195165,92389.0,92388.0,0.08455199]
[1740439819055,0.29410438,92389.0,92388.0,0.08455199]
[1740439819960,0.61962142,92389.0,92388.0,0.08455199]
[1740439820350,0.61862142,92389.0,92388.0,0.08455199]
[1740439820556,1.26162142,92389.0,92388.0,0.08455199]
[1740439820749,0.003,92386.0,92380.0,0.02712529]
[1740439820996,0.882482,92385.0,92380.0,0.02712529]
[1740439821196,0.955121,92384.0,92380.0,0.02712529]
[1740439821400,0.644067,92383.0,92380.0,0.02712529]
[1740439821614,0.003,92381.0,92380.0,0.02712529]
[1740439821819,0.62180422,92381.0,92380.0,0.02712529]
[1740439821990,0.62198792,92381.0,92380.0,0.02712529]
[1740439822405,0.62361236,92381.0,92380.0,0.02712529]
[1740439822602,0.68561236,92381.0,92380.0,0.02712529]
[1740439822775,0.69231236,92381.0,92380.0,0.02712529]
[1740439822976,0.62320214,92381.0,92380.0,0.02712529]
[1740439823392,0.62519128,92381.0,92380.0,0.02712529]
[1740439823598,0.62320214,92381.0,92380.0,0.02712529]
[1740439823968,0.62420214,92381.0,92380.0,0.02712529]
[1740439824448,0.94970214,92381.0,92380.0,0.02712529]
[1740439824666,1.16081236,92381.0,92380.0,0.02712529]
[1740439824877,1.16181236,92381.0,92380.0,0.02712529]
[1740439826165,1.16081236,92381.0,92380.0,0.02712529]
[1740439826392,0.61861836,92381.0,92380.0,0.02712529]
[1740439826766,0.61961836,92381.0,92380.0,0.02712529]
[1740439827069,0.61861836,92381.0,92380.0,0.02712529]
[1740439827369,0.60141836,92381.0,92380.0,0.02712529]
[1740439827607,1.03554936,92381.0,92380.0,0.02712529]
[1740439827992,1.03454936,92381.0,92380.0,0.02712529]
[1740439828210,1.03454936,92381.0,92380.0,0.02512529]
[1740439829208,1.03154936,92381.0,92380.0,0.02512529]
[1740439829585,1.01734936,92381.0,92380.0,0.02512529]
[1740439829807,0.60241836,92381.0,92380.0,0.02512529]
[1740439829992,0.79285036,92381.0,92380.0,0.10762529]
[1740439830193,0.79185036,92381.0,92380.0,0.10762529]
[1740439830382,0.47361836,92381.0,92380.0,0.10762529]
[1740439830582,0.65688136,92381.0,92380.0,0.10762529]
[1740439831061,0.47461836,92381.0,92380.0,0.10762529]
[1740439831253,0.47361836,92381.0,92380.0,0.10762529]
[1740439831431,0.65688336,92381.0,92380.0,0.10762529]
[1740439831580,0.65788336,92381.0,92380.0,0.10762529]
[1740439831777,0.46041836,92381.0,92380.0,0.10762529]
[1740439832200,0.13391836,92381.0,92380.0,0.10762529]
[1740439832791,0.13291836,92381.0,92380.0,0.10762529]
[1740439833181,0.13391836,92381.0,92380.0,0.10762529]
[1740439833544,0.13291836,92381.0,92380.0,0.10762529]
[1740439833762,0.13391836,92381.0,92380.0,0.10762529]
[1740439834407,0.13291836,92381.0,92380.0,0.10762529]
[1740439834607,0.13391836,92381.0,92380.0,0.10762529]
[1740439835775,0.13291836,92381.0,92380.0,0.10762529]
[1740439836309,0.13391836,92381.0,92380.0,0.10762529]
[1740439836709,0.13291836,92381.0,92380.0,0.10762529]
[1740439836887,0.13391836,92381.0,92380.0,0.10762529]
[1740439837294,0.13291836,92381.0,92380.0,0.10762529]
[1740439837681,0.05730814,92381.0,92380.0,0.10762529]
[1740439838977,0.00162444,92381.0,92380.0,0.10762529]
[1740439839499,0.001,92381.0,92380.0,0.10762529]
[1740439840193,0.07830782,92388.0,92380.0,0.10762529]
[1740439840505,0.07830782,92388.0,92387.0,0.08655199]
[1740439840709,0.07830782,92388.0,92387.0,0.08555199]
[1740439841028,0.0016976,92388.0,92387.0,0.08555199]
[1740439841347,0.0016976,92388.0,92387.0,0.08706712]
[1740439841665,0.0016976,92388.0,92387.0,0.08555199]
[1740439842069,0.02754791,92388.0,92387.0,0.08555199]
[1740439842295,0.02854791,92388.0,92387.0,0.08555199]
[1740439843316,0.02754791,92388.0,92387.0,0.08555199]
[1740439843702,0.13777991,92388.0,92387.0,0.08555199]
[1740439843900,0.13844991,92388.0,92387.0,0.08555199]
[1740439844108,0.14973719,92388.0,92387.0,0.08555199]
[1740439844878,0.03983519,92388.0,92387.0,0.08555199]
[1740439845297,0.03883519,92388.0,92387.0,0.08555199]
[1740439845731,0.14745219,92388.0,92387.0,0.08555199]
[1740439846358,0.14645219,92388.0,92387.0,0.08555199]
[1740439846536,0.14745219,92388.0,92387.0,0.08555199]
[1740439847226,0.03883519,92388.0,92387.0,0.08555199]
[1740439848926,0.04004023,92388.0,92387.0,0.08555199]
[1740439850936,0.0419135,92388.0,92387.0,0.08555199]
[1740439852039,0.0419135,92388.0,92387.0,0.08640079]
[1740439858911,0.0419135,92388.0,92387.0,0.0008488]
[1740439860795,0.0409135,92388.0,92387.0,0.0008488]
[1740439860965,0.0419135,92388.0,92387.0,0.0008488]
[1740439865603,0.01606319,92388.0,92387.0,0.00010292]
[1740439866246,0.01585815,92388.0,92387.0,0.00010292]
[1740439866715,0.00457087,92388.0,92387.0,0.00010292]
[1740439866919,0.00357087,92388.0,92387.0,0.00010292]
[1740439867038,0.00457087,92388.0,92387.0,0.08221802]
[1740439867235,0.00457087,92388.0,92387.0,0.11013725]
[1740439867473,0.00457087,92388.0,92387.0,0.09313725]
[1740439867686,0.00357087,92388.0,92387.0,0.08070292]
[1740439867888,0.00457087,92388.0,92387.0,0.09770292]
[1740439868303,0.0026976,92388.0,92387.0,0.09921785]
[1740439868457,0.0016976,92388.0,92387.0,0.09921785]
[1740439868655,0.0026976,92388.0,92387.0,0.11921785]
[1740439869899,0.0016976,92388.0,92387.0,0.11921785]
[1740439870168,0.00020905,92415.0,92400.0,0.037]
[1740439870293,0.00020905,92415.0,92400.0,0.11831472]
[1740439870492,0.00354606,92401.0,92400.0,0.1168]
[1740439870937,0.00375664,92401.0,92400.0,0.11831453]
[1740439871141,0.00203808,92401.0,92400.0,0.13201453]
[1740439871314,0.0018275,92401.0,92400.0,0.14521598]
[1740439871617,0.0018275,92401.0,92400.0,0.14521589]
[1740439871841,0.0028275,92401.0,92400.0,0.14521589]
[1740439872352,0.00021058,92419.0,92418.0,0.017]
[1740439872531,0.0002539,92419.0,92418.0,0.09831445]
[1740439873133,0.02641644,92419.0,92418.0,0.0798]
[1740439873478,0.028135,92419.0,92418.0,0.0798]
[1740439873813,0.028135,92419.0,92410.0,0.017]
[1740439874017,0.00015979,92419.0,92410.0,0.017]
[1740439874211,0.02616254,92418.0,92413.0,0.017]
[1740439874440,0.02616254,92418.0,92410.0,0.017]
[1740439874756,0.02616254,92418.0,92414.0,0.017]
[1740439875873,0.02616254,92418.0,92409.0,0.0798]
[1740439875874,0.02616254,92418.0,92411.0,0.017]
[1740439876048,0.00011857,92417.0,92410.0,0.017]
[1740439876256,0.00011857,92417.0,92412.0,0.017]
[1740439876452,0.02616254,92416.0,92414.0,0.017]
[1740439876855,0.00011857,92415.0,92414.0,0.017]
[1740439877305,0.00011857,92415.0,92414.0,0.01851456]
[1740439877677,0.00011857,92415.0,92414.0,0.03751456]
[1740439877879,0.00011857,92415.0,92414.0,0.036]
[1740439878060,0.02628111,92415.0,92414.0,0.05638665]
[1740439878259,0.02628111,92415.0,92414.0,0.036]
[1740439878997,0.2714848,92433.0,92424.0,0.017]
[1740439879168,0.0029467,92432.0,92424.0,0.017]
[1740439879356,0.00471308,92432.0,92424.0,0.017]
[1740439879571,0.22619788,92433.0,92424.0,0.017]
[1740439879777,0.00167806,92432.0,92424.0,0.017]
[1740439880373,0.00167806,92432.0,92425.0,0.08655199]
[1740439881606,0.00173433,92432.0,92425.0,0.08655199]
[1740439882124,5.627e-05,92432.0,92425.0,0.08806632]
[1740439882734,5.627e-05,92432.0,92425.0,0.10506632]
[1740439884124,5.627e-05,92432.0,92426.0,0.0782]
[1740439884330,5.627e-05,92432.0,92430.0,0.017]
[1740439884536,5.627e-05,92432.0,92431.0,0.0015143]
[1740439884935,0.09536423,92432.0,92431.0,0.0015143]
[1740439885172,0.09536423,92432.0,92428.0,0.017]
[1740439885310,0.09695978,92432.0,92429.0,0.01851437]
[1740439885510,0.09695978,92432.0,92430.0,0.01832664]
[1740439885747,0.09695978,92432.0,92431.0,0.017]
[1740439888043,0.09695978,92432.0,92431.0,0.036]
[1740439889208,0.09695978,92432.0,92431.0,0.03751427]
[1740439889370,0.09536423,92432.0,92431.0,0.03751427]
[1740439889569,0.09536423,92432.0,92431.0,0.036]
[1740439889837,0.09690405,92432.0,92431.0,0.05731662]
[1740439889957,0.09690405,92432.0,92431.0,0.05883069]
[1740439890175,0.00159609,92432.0,92431.0,0.14033069]
[1740439890379,5.627e-05,92432.0,92431.0,0.14033069]
[1740439890587,0.12180317,92431.0,92428.0,0.3224]
[1740439890829,0.00153982,92430.0,92429.0,0.04349937]
[1740439891748,0.00153982,92430.0,92429.0,0.36589937]
[1740439891956,0.00153982,92430.0,92429.0,0.3224]
[1740439892354,0.24619788,92493.0,92429.0,0.3224]
[1740439892577,5.629e-05,92474.0,92458.0,0.0813]
[1740439892771,5.629e-05,92474.0,92459.0,0.00151356]
[1740439892969,5.629e-05,92474.0,92460.0,0.01693655]
[1740439893172,5.629e-05,92474.0,92461.0,0.00151356]
[1740439893950,5.629e-05,92474.0,92460.0,0.01693655]
[1740439894174,5.629e-05,92474.0,92461.0,0.0012698]
[1740439895639,0.00105629,92474.0,92461.0,0.0012698]
[1740439895876,0.00105629,92474.0,92462.0,0.01860583]
[1740439896106,0.00105629,92474.0,92463.0,0.0012698]
[1740439897043,0.00105629,92474.0,92464.0,0.0012698]
[1740439897464,5.629e-05,92474.0,92464.0,0.0012698]
[1740439898186,5.629e-05,92474.0,92465.0,0.0012698]
[1740439898963,0.00175309,92474.0,92465.0,0.0012698]
[1740439899165,0.00175309,92474.0,92466.0,0.00126981]
[1740439900176,0.00175309,92474.0,92467.0,0.00126981]
[1740439901243,0.00175309,92474.0,92468.0,0.00126981]
[1740439901452,0.00175309,92474.0,92458.0,0.00126981]
[1740439902008,0.00175309,92474.0,92459.0,0.01692218]
[1740439902173,0.00175309,92474.0,92460.0,0.00126981]
[1740439903545,0.00175309,92474.0,92452.0,0.0252381]
[1740439904360,0.00175309,92474.0,92457.0,0.08655199]
[1740439904568,0.00175309,92474.0,92458.0,0.01117901]
[1740439904772,0.0474,92472.0,92432.0,0.3224]
[1740439904930,0.02,92470.0,92432.0,0.3224]
[1740439905142,0.02,92470.0,92415.0,0.3224]
[1740439905143,0.02,92465.0,92415.0,0.3224]
[1740439905471,0.0474,92463.0,92415.0,0.3224]
[1740439905670,0.73566,92462.0,92415.0,0.3224]
[1740439905976,0.076,92455.0,92415.0,0.3224]
[1740439906153,0.02,92445.0,92413.0,0.24348]
[1740439906371,0.096,92439.0,92390.0,0.08655199]
[1740439906519,0.02,92433.0,92390.0,0.08655199]
[1740439906720,0.447445,92432.0,92390.0,0.08655199]
[1740439906967,0.01408,92431.0,92390.0,0.08655199]
[1740439907282,0.51565,92431.0,92390.0,0.08655199]
[1740439907637,0.9191581,92431.0,92387.0,0.00010292]
[1740439907820,0.93044677,92431.0,92387.0,0.00010292]
[1740439908025,0.02,92403.0,92387.0,0.00010292]
[1740439908222,0.02,92403.0,92387.0,0.0005357]
[1740439910593,0.1243,92402.0,92387.0,0.0005357]
[1740439912446,0.09493885,92390.0,92387.0,0.0005357]
[1740439914705,0.09493885,92390.0,92388.0,0.08655199]
[1740439914905,0.04545288,92390.0,92389.0,0.00870877]
[1740439915066,0.01408,92431.0,92389.0,0.00870877]
[1740439915276,0.0471,92440.0,92407.0,0.08655199]
[1740439915522,0.0825,92447.0,92407.0,0.08655199]
[1740439915723,0.0825,92447.0,92417.0,0.08655199]
[1740439915896,0.0825,92447.0,92418.0,0.0086552]
[1740439916884,0.08254331,92447.0,92418.0,0.0086552]
[1740439918777,0.08254331,92447.0,92421.0,0.08405214]
[1740439918979,4.331e-05,92447.0,92421.0,0.0483973]
[1740439919184,4.331e-05,92447.0,92408.0,0.21043527]
[1740439919388,4.331e-05,92447.0,92417.0,0.08655199]
[1740439919598,4.331e-05,92447.0,92409.0,0.00236211]
[1740439919800,4.331e-05,92447.0,92418.0,0.08655199]
[1740439920772,4.331e-05,92447.0,92418.0,0.08577814]
[1740439921326,4.331e-05,92447.0,92410.0,0.02670947]
[1740439921524,4.331e-05,92447.0,92407.0,0.10657703]
[1740439921744,0.01130144,92446.0,92428.0,0.08655199]
[1740439921929,0.01130144,92446.0,92428.0,0.09520719]
[1740439922651,0.18727055,92469.0,92428.0,0.05333591]
[1740439922865,0.01130144,92457.0,92428.0,0.05337922]
[1740439923066,0.01130144,92457.0,92418.0,0.26282152]
[1740439923265,0.18727055,92469.0,92418.0,0.25387779]
[1740439923468,0.01130144,92457.0,92419.0,0.03404298]
[1740439923670,0.02,92467.0,92419.0,0.03404298]
[1740439923870,0.01130144,92457.0,92418.0,0.17648839]
[1740439924098,0.02,92454.0,92418.0,0.17648839]
[1740439926186,0.0779,92455.0,92418.0,0.17648839]
[1740439926400,0.0779,92455.0,92419.0,0.02630404]
[1740439926617,0.18727055,92456.0,92418.0,0.00090447]
[1740439926852,0.18727055,92456.0,92428.0,0.077]
[1740439932306,0.01130144,92457.0,92428.0,0.077]
[1740439934247,0.0016968,92456.0,92428.0,0.077]
[1740439938636,0.0016968,92456.0,92427.0,0.08655199]
[1740439938778,0.0108179,92455.0,92419.0,0.25518392]
[1740439938981,0.0458,92453.0,92419.0,0.25518392]
[1740439939203,0.02,92450.0,92418.0,0.00090447]
[1740439939403,0.20727055,92450.0,92418.0,0.00090447]
[1740439939605,0.0751,92442.0,92400.0,0.05747705]
[1740439939805,0.1209,92434.0,92391.0,0.17558392]
[1740439940231,0.21596144,92433.0,92391.0,0.17558392]
[1740439940390,0.204335,92432.0,92391.0,0.17558392]
[1740439940852,0.188757,92432.0,92391.0,0.17558392]
[1740439941015,0.193517,92432.0,92391.0,0.17558392]
[1740439941214,0.03597584,92431.0,92392.0,0.02709476]
[1740439941395,0.01130144,92433.0,92392.0,0.02709476]
[1740439941597,0.194743,92432.0,92392.0,0.02709476]
[1740439942004,0.194743,92432.0,92391.0,0.17558392]
[1740439942459,0.02,92426.0,92374.0,0.17558392]
[1740439942658,0.09518077,92418.0,92374.0,0.17558392]
[1740439942861,0.09518077,92418.0,92382.0,0.081]
[1740439943694,0.0455,92417.0,92382.0,0.081]
[1740439943842,0.03936262,92417.0,92387.0,0.0005357]
[1740439944261,0.078,92416.0,92387.0,0.0005357]
[1740439945755,0.09518077,92412.0,92387.0,0.0005357]
[1740439945963,0.02125434,92411.0,92387.0,0.0005357]
[1740439947900,0.09518077,92409.0,92387.0,0.0005357]
[1740439951478,0.18727055,92408.0,92387.0,0.0005357]
[1740439951767,0.09518077,92407.0,92387.0,0.0005357]
[1740439955534,0.01130144,92406.0,92387.0,0.0005357]
[1740439956089,0.04280215,92406.0,92387.0,0.0005357]
[1740439956274,0.01130144,92406.0,92387.0,0.0005357]
[1740439956633,0.09518077,92390.0,92387.0,0.0005357]
[1740439959766,0.09518077,92389.0,92387.0,0.0005357]
[1740439961918,0.09518077,92389.0,92388.0,0.0786]
[1740439962117,0.09518077,92389.0,92388.0,0.08651357]
[1740439962470,0.09460722,92389.0,92388.0,0.08651357]
[1740439962890,0.01130144,92406.0,92388.0,0.08651357]
[1740439963480,0.01130144,92406.0,92388.0,0.08851357]
[1740439964080,0.01130144,92406.0,92390.0,0.08655199]
[1740439964276,0.01130144,92406.0,92391.0,0.01756013]
[1740439965140,0.01130144,92406.0,92402.0,0.08655199]
[1740439965709,0.01130144,92406.0,92403.0,0.081]
[1740439966277,0.01130144,92406.0,92402.0,0.08655199]
[1740439966278,0.0016976,92417.0,92405.0,0.0802]
[1740439966467,0.0016976,92417.0,92404.0,0.20678392]
[1740439966468,0.0016976,92417.0,92416.0,0.08655199]
[1740439966679,0.0016976,92417.0,92416.0,0.17540719]
[1740439968673,0.0016976,92417.0,92416.0,0.16675199]
[1740439968861,0.0036976,92417.0,92416.0,0.17075199]
[1740439969059,0.0026976,92417.0,92416.0,0.16875199]
[1740439969662,0.0036976,92417.0,92416.0,0.17075199]
[1740439970189,0.0026976,92417.0,92416.0,0.16875199]
[1740439970994,0.0036976,92417.0,92416.0,0.36321111]
[1740439971195,0.0036976,92417.0,92416.0,0.34633591]
[1740439972557,0.0016976,92417.0,92416.0,0.34233591]
[1740439973003,0.0026976,92417.0,92416.0,0.34433591]
[1740439973820,0.0016976,92417.0,92416.0,0.34233591]
[1740439974068,0.001,92417.0,92416.0,0.34433591]
[1740439974266,0.002,92417.0,92416.0,0.34633591]
[1740439974394,0.002,92417.0,92416.0,0.35783534]
[1740439974805,0.002,92417.0,92416.0,0.26613591]
[1740439975047,0.002,92417.0,92416.0,0.004]
[1740439975563,0.001,92417.0,92416.0,0.002]
[1740439976162,0.002,92417.0,92416.0,0.004]
[1740439976939,0.001,92417.0,92416.0,0.002]
[1740439977974,0.0484,92420.0,92392.0,0.17558392]
[1740439978177,0.0484,92420.0,92393.0,0.01836004]
[1740439979861,0.0484,92420.0,92393.0,0.19394396]
[1740439980077,0.0484,92420.0,92393.0,0.17558392]
[1740439980459,0.04823629,92420.0,92393.0,0.17558392]
[1740439981910,0.0954332,92413.0,92393.0,0.17558392]
[1740439982547,0.0954332,92413.0,92393.0,0.17643282]
[1740439983122,0.0954332,92413.0,92393.0,0.19409073]
[1740439984864,0.0954332,92413.0,92394.0,0.08655199]